bitfinex-derivatives/quotes_ETHF0:USTF0_20210111
["timestamp","ask_amount","ask_price","bid_price","bid_amount"]
[1610390763364,2.3258,1016.1,1015.0,0.27465371]
[1610390763963,2.3258,1016.1,1016.0,4.00959]
[1610390764770,1.5596,1016.6,1016.0,4.00959]
[1610390764965,13.1799666,1017.5,1016.0,4.00959]
[1610390765171,70.9233,1017.7,1015.8,2.4368]
[1610390765767,60.48853069,1018.0,1015.8,2.71016274]
[1610390765973,60.48853069,1018.0,1017.9,4.00959]
[1610390766170,1.7801,1018.1,1017.9,4.00959]
[1610390766369,60.47247415,1018.2,1017.9,4.00959]
[1610390766571,78.42110288,1018.5,1017.9,4.00959]
[1610390766768,60.46567984,1018.5,1017.9,4.00959]
[1610390767191,17.95408498,1018.6,1017.9,4.00959]
[1610390767192,60.44967411,1018.6,1017.9,4.00959]
[1610390767383,20.34329524,1018.9,1017.9,4.00959]
[1610390767384,60.43860829,1018.8,1017.9,4.00959]
[1610390767778,60.42741491,1019.0,1017.9,4.00959]
[1610390767976,60.42741491,1019.0,1018.8,4.00959]
[1610390768174,64.4309105,1019.1,1018.8,4.00959]
[1610390768388,60.42193315,1019.2,1017.5,63.8907]
[1610390769173,78.3482927,1019.4,1017.5,63.8907]
[1610390769584,90.4095404,1019.4,1017.5,63.8907]
[1610390769774,60.41149057,1019.3,1017.5,63.8907]
[1610390769971,30.0,1019.2,1017.5,63.8907]
[1610390770175,108.36180507,1019.2,1017.5,63.8907]
[1610390770378,11.0143,1019.3,1017.5,63.8907]
[1610390770379,60.42397162,1019.0,1017.5,63.8907]
[1610390770574,4.00959,1018.4,1018.1,4.00959]
[1610390770774,1.738,1018.4,1018.1,4.00959]
[1610390772175,1.8116,1018.7,1018.1,4.00959]
[1610390772574,1.8116,1018.7,1018.6,4.00959]
[1610390773175,2.2155,1019.0,1018.6,4.00959]
[1610390774573,4.00959,1018.8,1018.6,4.00959]
[1610390774975,2.2155,1019.0,1018.6,4.00959]
[1610390775575,8.2155,1019.1,1018.6,4.00959]
[1610390775974,2.0143,1019.3,1018.6,4.00959]
[1610390776174,60.40176521,1019.5,1018.6,4.00959]
[1610390776376,60.39790874,1019.6,1018.6,4.00959]
[1610390776574,60.39790874,1019.6,1019.5,4.00959]
[1610390776774,64.3936757,1019.7,1019.5,4.00959]
[1610390776974,60.3840857,1019.7,1019.5,4.00959]
[1610390777174,60.37527511,1019.9,1019.5,4.00959]
[1610390777374,30.48634761,1019.9,1019.5,4.00959]
[1610390777576,60.36842198,1020.0,1019.5,4.00959]
[1610390777775,60.36697672,1020.1,1019.5,4.00959]
[1610390777974,9.0,1020.0,1018.5,1.5158]
[1610390778176,130.90962535,1020.0,1018.5,1.5158]
[1610390778374,60.37435365,1019.9,1018.5,1.5158]
[1610390778573,4.00959,1019.5,1018.8,4.00959]
[1610390778774,6.33989,1019.5,1018.8,4.00959]
[1610390778974,36.33989,1019.5,1018.8,4.00959]
[1610390779674,6.33989,1019.5,1018.8,4.00959]
[1610390780475,4.00959,1019.2,1018.8,4.00959]
[1610390780875,5.73619,1019.2,1018.8,4.00959]
[1610390781475,5.73619,1019.2,1017.9,78.7787]
[1610390781678,5.73619,1019.2,1017.8,2.0941]
[1610390781875,5.73619,1019.2,1017.3,2.033]
[1610390782275,5.73619,1019.2,1017.2,65.4063]
[1610390782476,5.73619,1019.2,1017.0,0.26640947]
[1610390782675,5.73619,1019.2,1016.8,0.26694382]
[1610390782676,4.00959,1018.0,1016.8,0.26694382]
[1610390782875,35.73959,1018.0,1016.8,0.26694382]
[1610390783075,71.558,1017.7,1016.8,0.26694382]
[1610390783278,30.0,1017.6,1016.4,0.26773995]
[1610390783675,30.0,1017.6,1016.0,0.26844706]
[1610390783876,30.0,1017.6,1015.8,75.88537805]
[1610390784276,73.7462,1017.7,1015.8,75.88537805]
[1610390784477,4.00959,1016.7,1016.6,4.00959]
[1610390784675,1.8751,1016.7,1016.6,4.00959]
[1610390785276,1.8751,1016.7,1015.5,0.26908814]
[1610390785476,1.8751,1016.7,1015.4,2.20043873]
[1610390785978,12.8919,1016.7,1015.2,0.26956827]
[1610390786177,12.8919,1016.7,1015.1,0.26981884]
[1610390786578,12.8919,1016.7,1015.8,4.00959]
[1610390786980,1.8751,1016.7,1015.8,4.00959]
[1610390787980,62.69427868,1017.7,1015.8,4.00959]
[1610390788181,2.1882,1017.7,1015.8,4.00959]
[1610390788385,60.49688903,1017.8,1015.8,4.00959]
[1610390788581,1.73,1018.0,1017.7,4.00959]
[1610390788779,78.45155929,1018.2,1017.7,4.00959]
[1610390788980,62.60500046,1018.4,1017.7,4.00959]
[1610390789181,2.1379,1018.4,1017.7,4.00959]
[1610390789380,60.44916589,1018.6,1017.7,4.00959]
[1610390789583,60.43371806,1018.7,1017.7,4.00959]
[1610390789982,60.43346104,1018.8,1017.7,4.00959]
[1610390790681,64.43689918,1018.9,1017.3,64.128]
[1610390790881,82.38136843,1018.9,1017.3,64.128]
[1610390791281,60.43033118,1018.8,1017.3,64.128]
[1610390791481,62.08403118,1018.8,1017.3,64.128]
[1610390792283,1.6537,1018.8,1017.3,64.128]
[1610390792683,4.00959,1018.6,1018.4,4.00959]
[1610390792883,1.6537,1018.8,1018.4,4.00959]
[1610390794487,1.6537,1018.8,1017.3,60.3581]
[1610390794685,4.00959,1018.1,1017.2,2.26864116]
[1610390794887,6.03829,1018.1,1017.0,0.26794665]
[1610390795087,6.03829,1018.1,1016.8,0.2682215]
[1610390795589,6.03829,1018.1,1016.6,57.04866557]
[1610390795789,6.03829,1018.1,1016.6,56.7801]
[1610390796589,4.00959,1017.4,1017.1,4.00959]
[1610390796790,6.37859,1017.4,1017.1,4.00959]
[1610390796991,6.37859,1017.4,1016.6,56.7801]
[1610390798191,2.369,1017.4,1016.6,56.7801]
[1610390798591,2.369,1017.4,1017.3,4.00959]
[1610390799191,2.0287,1018.1,1017.3,4.00959]
[1610390799993,1.6537,1018.8,1017.3,4.00959]
[1610390800193,30.0,1019.1,1017.3,4.00959]
[1610390800392,60.42019644,1019.2,1017.3,4.00959]
[1610390800393,9.0,1019.2,1017.3,4.00959]
[1610390800592,4.00959,1018.2,1018.0,4.00959]
[1610390800797,6.27869,1018.2,1017.2,2.0196]
[1610390801192,6.27869,1018.2,1016.8,1.91515162]
[1610390801394,6.27869,1018.2,1016.6,74.2898]
[1610390802295,2.2691,1018.2,1016.6,74.2898]
[1610390802897,2.2691,1018.2,1016.6,74.55729052]
[1610390803098,2.2691,1018.2,1016.8,0.26727685]
[1610390803297,2.2691,1018.2,1016.8,1.79087685]
[1610390803498,2.2691,1018.2,1016.9,0.26709483]
[1610390803699,2.2691,1018.2,1017.0,0.26690272]
[1610390803899,66.37124434,1019.3,1017.0,0.26690272]
[1610390804098,66.37124434,1019.3,1017.0,79.77890272]
[1610390804700,70.38083434,1019.3,1018.6,4.00959]
[1610390804901,64.41583434,1019.3,1018.6,4.00959]
[1610390805301,4.00959,1019.3,1018.6,4.00959]
[1610390805901,4.00959,1019.3,1018.1,73.6978]
[1610390806101,6.20009,1019.3,1018.1,73.6978]
[1610390806704,6.20009,1019.3,1019.0,4.00959]
[1610390806906,2.1905,1019.3,1019.0,4.00959]
[1610390807501,2.1905,1019.3,1018.2,1.8667]
[1610390808603,2.1905,1019.3,1019.0,4.00959]
[1610390809106,2.1905,1019.3,1018.2,1.8667]
[1610390809503,32.1905,1019.3,1018.2,1.8667]
[1610390810103,32.1905,1019.3,1018.1,73.6978]
[1610390810303,2.1905,1019.3,1018.1,73.6978]
[1610390810703,2.1905,1019.3,1018.3,4.00959]
[1610390811303,4.00959,1019.7,1018.3,4.00959]
[1610390812306,64.38748284,1019.7,1018.3,4.00959]
[1610390812508,94.38748284,1019.7,1018.3,4.00959]
[1610390812706,94.38748284,1019.7,1018.5,4.00959]
[1610390812707,4.00959,1019.3,1018.5,4.00959]
[1610390812906,5.76189,1019.3,1018.5,4.00959]
[1610390814608,5.76189,1019.3,1018.7,4.00959]
[1610390815008,5.76189,1019.3,1018.1,76.1186]
[1610390816111,35.76189,1019.3,1017.7,1.9985]
[1610390816309,35.76189,1019.3,1017.4,1.5654]
[1610390816509,35.76189,1019.3,1017.3,58.2412]
[1610390816510,5.76189,1019.3,1017.3,58.2412]
[1610390816711,5.76189,1019.3,1018.3,4.00959]
[1610390816712,4.00959,1018.6,1018.3,4.00959]
[1610390817109,5.87599,1018.6,1018.3,4.00959]
[1610390817309,5.87599,1018.6,1017.3,58.2412]
[1610390817510,5.87599,1018.6,1017.0,0.26590068]
[1610390817709,5.87599,1018.6,1016.9,0.26607043]
[1610390817910,5.87599,1018.6,1016.8,1.78983199]
[1610390818110,35.87599,1018.6,1016.8,1.78983199]
[1610390818311,35.87599,1018.6,1016.8,1.5236]
[1610390818511,44.87599,1018.6,1016.7,75.2889]
[1610390818710,40.8664,1018.6,1016.7,75.2889]
[1610390819111,60.45314934,1018.4,1016.7,75.2889]
[1610390819312,30.0,1018.3,1016.7,75.2889]
[1610390819711,31.6419,1018.3,1016.7,75.2889]
[1610390819914,92.09879663,1018.3,1016.7,75.2889]
[1610390820114,62.09879663,1018.3,1016.7,75.2889]
[1610390820315,92.09879663,1018.3,1016.7,75.2889]
[1610390820517,31.6419,1018.3,1016.7,75.2889]
[1610390820817,4.00959,1016.8,1016.6,4.00959]
[1610390821016,1.6073,1017.2,1016.1,0.26751164]
[1610390821217,1.6073,1017.2,1016.0,1.81205882]
[1610390821417,1.6073,1017.2,1016.0,1.5444]
[1610390822416,1.6073,1017.2,1016.0,1.81175609]
[1610390822617,1.6073,1017.2,1016.0,1.5444]
[1610390822817,1.6073,1017.2,1016.6,4.00959]
[1610390824616,30.0,1018.1,1016.6,4.00959]
[1610390824817,30.0,1018.1,1016.3,2.3606]
[1610390825018,30.0,1018.1,1016.7,65.7582]
[1610390825419,30.0,1018.0,1016.7,65.7582]
[1610390825619,32.2972,1018.0,1016.7,65.7582]
[1610390826020,32.2972,1018.0,1016.3,2.3606]
[1610390826220,41.2972,1018.0,1016.3,2.3606]
[1610390826419,32.2972,1018.0,1016.3,2.3606]
[1610390826819,4.00959,1017.5,1017.4,4.00959]
[1610390827020,6.04889,1017.5,1017.4,4.00959]
[1610390827219,6.04889,1017.5,1016.5,76.5991]
[1610390828721,6.04889,1017.5,1017.1,4.00959]
[1610390828921,2.0393,1017.5,1017.1,4.00959]
[1610390829423,2.2972,1018.0,1017.1,4.00959]
[1610390830222,1.6419,1018.3,1017.1,4.00959]
[1610390830421,1.8664,1018.6,1017.1,4.00959]
[1610390830624,77.4695,1018.9,1017.1,4.00959]
[1610390830823,77.4695,1018.9,1018.0,4.00959]
[1610390831023,10.0,1019.0,1018.0,4.00959]
[1610390831623,40.0,1019.0,1018.0,4.00959]
[1610390832124,10.0,1019.0,1018.0,4.00959]
[1610390832328,40.0,1019.0,1018.0,4.00959]
[1610390832525,10.0,1019.0,1018.0,4.00959]
[1610390832725,4.00959,1018.9,1018.6,4.00959]
[1610390832924,1.7121,1018.9,1018.6,4.00959]
[1610390834824,1.7121,1018.9,1018.8,4.00959]
[1610390836632,10.0,1019.0,1018.8,4.00959]
[1610390836831,8.719,1019.0,1018.8,4.00959]
[1610390837232,7.302,1019.0,1018.8,4.00959]
[1610390837433,6.114,1019.0,1018.8,4.00959]
[1610390837632,6.045,1019.0,1018.8,4.00959]
[1610390838032,5.045,1019.0,1018.8,4.00959]
[1610390841233,4.645,1019.0,1018.8,4.00959]
[1610390842338,4.645,1019.0,1018.8,6.48309]
[1610390843535,4.645,1019.0,1018.8,4.00959]
[1610390846538,4.645,1019.0,1018.4,59.7883]
[1610390846738,4.00959,1018.8,1018.3,6.17449]
[1610390847139,4.00959,1018.8,1018.3,4.00959]
[1610390847338,6.3444,1019.0,1018.3,4.00959]
[1610390847738,6.3444,1019.0,1018.3,5.53699]
[1610390848839,4.645,1019.0,1018.6,4.00959]
[1610390850245,1.2147,1019.3,1018.6,4.00959]
[1610390850643,2.4735,1019.9,1018.6,6.17979]
[1610390850844,4.00959,1019.8,1019.6,4.00959]
[1610390851644,4.00959,1019.8,1018.6,2.1702]
[1610390852747,4.00959,1019.5,1019.0,4.00959]
[1610390853747,4.00959,1019.5,1018.6,2.1702]
[1610390854148,34.00959,1019.5,1018.6,2.1702]
[1610390854348,4.00959,1019.5,1018.6,2.1702]
[1610390854748,4.00959,1019.0,1018.6,6.17979]
[1610390855349,2.3719,1019.6,1018.6,6.17979]
[1610390855548,32.3719,1019.6,1018.6,6.17979]
[1610390855749,41.3719,1019.6,1018.6,6.17979]
[1610390855948,51.8943,1019.6,1018.6,2.1702]
[1610390856149,51.8943,1019.6,1018.3,1.5274]
[1610390856349,51.8943,1019.6,1018.2,57.5866]
[1610390856750,12.8943,1019.6,1018.2,57.5866]
[1610390856950,4.00959,1018.9,1018.5,4.00959]
[1610390857351,4.00959,1018.9,1018.0,1.7574]
[1610390857753,34.00959,1018.9,1017.7,2.0906]
[1610390857952,43.00959,1018.9,1017.6,70.3324]
[1610390858152,4.00959,1018.9,1017.6,70.3324]
[1610390858952,4.00959,1018.3,1017.6,70.3324]
[1610390859152,4.00959,1018.3,1016.9,0.26103866]
[1610390859354,4.00959,1018.3,1017.0,75.5668]
[1610390859552,4.00959,1018.3,1017.0,77.4261]
[1610390860154,4.00959,1018.3,1017.0,1.8593]
[1610390860355,81.3871,1018.0,1017.0,1.8593]
[1610390860553,30.0,1017.9,1017.0,1.8593]
[1610390860953,4.00959,1017.1,1017.0,1.8593]
[1610390861154,4.00959,1017.1,1016.3,0.26254064]
[1610390861553,4.00959,1017.1,1016.2,0.26309234]
[1610390861753,6.32659,1017.1,1016.2,0.26309234]
[1610390861954,6.32659,1017.1,1016.0,0.26371941]
[1610390862956,6.32659,1017.1,1016.9,4.00959]
[1610390863756,6.32659,1017.1,1016.1,1.4944]
[1610390864959,4.00959,1016.9,1016.7,4.00959]
[1610390866259,2.317,1017.1,1016.7,4.00959]
[1610390866660,73.0088,1017.4,1016.7,4.00959]
[1610390866860,4.00959,1017.0,1016.7,4.00959]
[1610390867260,1.8975,1017.1,1016.7,4.00959]
[1610390868265,1.9581,1017.6,1016.7,4.00959]
[1610390868464,1.7307,1018.0,1016.7,5.85919]
[1610390868662,2.1813,1018.4,1016.7,5.85919]
[1610390868863,60.43650266,1018.7,1018.3,4.00959]
[1610390869063,4.00959,1018.9,1018.3,4.00959]
[1610390869464,4.00959,1018.9,1017.7,60.8779]
[1610390869663,6.44139,1018.9,1017.7,60.8779]
[1610390869864,6.44139,1018.9,1017.4,2.327]
[1610390869865,36.44139,1018.9,1017.4,2.327]
[1610390870064,76.2842,1018.8,1017.4,2.327]
[1610390870264,30.0,1018.7,1017.4,2.327]
[1610390870667,30.0,1018.7,1017.1,2.3408]
[1610390870865,4.00959,1017.9,1017.7,4.00959]
[1610390871465,4.00959,1017.9,1017.1,2.3408]
[1610390872265,4.00959,1017.9,1016.7,1.8496]
[1610390872865,4.00959,1017.7,1017.5,4.00959]
[1610390873065,5.86889,1017.7,1017.5,4.00959]
[1610390874165,1.8593,1017.7,1017.5,4.00959]
[1610390874365,2.3838,1018.0,1017.5,4.00959]
[1610390874966,2.3838,1018.0,1017.9,4.00959]
[1610390875769,2.3838,1018.0,1017.0,62.9359]
[1610390875967,2.3838,1018.0,1017.0,2.2437]
[1610390876166,101.83699,1018.5,1017.0,2.2437]
[1610390876868,4.00959,1017.5,1017.3,4.00959]
[1610390877267,4.00959,1017.5,1016.7,1.8496]
[1610390877469,4.00959,1017.5,1016.6,76.5473]
[1610390878868,4.00959,1017.2,1017.1,4.00959]
[1610390879669,1.6521,1017.4,1017.1,4.00959]
[1610390880471,2.3823,1017.7,1017.1,4.00959]
[1610390880669,58.1405,1018.1,1017.1,4.00959]
[1610390880870,58.1405,1018.1,1018.0,4.00959]
[1610390881070,4.00959,1018.5,1018.0,4.00959]
[1610390881873,34.00959,1018.5,1017.3,64.3322]
[1610390882073,6.21209,1018.5,1017.3,64.3322]
[1610390882876,4.00959,1018.3,1018.0,4.00959]
[1610390883278,2.2025,1018.5,1018.0,4.00959]
[1610390884980,4.00959,1018.1,1018.0,4.00959]
[1610390885184,2.2025,1018.5,1018.0,4.00959]
[1610390886183,43.2275,1018.5,1017.3,64.3322]
[1610390886382,32.2025,1018.5,1017.3,2.2494]
[1610390886582,101.0053,1018.4,1017.0,2.3585]
[1610390886782,101.0053,1018.4,1016.7,78.37733364]
[1610390886783,101.0053,1018.4,1016.7,78.116]
[1610390886982,101.0053,1018.4,1017.5,4.00959]
[1610390887682,101.0053,1018.4,1017.3,2.2864]
[1610390887883,30.0,1018.4,1017.3,2.2864]
[1610390888084,70.2268,1017.8,1016.7,1.5898]
[1610390888285,30.0,1017.7,1016.4,2.0678]
[1610390888486,30.0,1017.7,1016.3,64.01607366]
[1610390888685,30.0,1017.7,1016.3,63.754]
[1610390888886,63.6545,1017.5,1016.4,4.00959]
[1610390889086,30.0,1017.4,1016.4,4.00959]
[1610390890891,4.00959,1016.5,1016.4,4.00959]
[1610390892191,4.00959,1016.5,1015.6,57.22951427]
[1610390892393,4.00959,1016.5,1015.6,56.9678]
[1610390892991,4.00959,1015.9,1015.8,4.00959]
[1610390893191,4.00959,1015.9,1015.3,0.26117164]
[1610390893793,4.00959,1015.9,1015.2,0.2611587]
[1610390894396,4.00959,1015.9,1015.1,74.30026187]
[1610390894793,4.00959,1015.9,1015.1,74.0388]
[1610390894993,4.00959,1015.9,1015.5,4.00959]
[1610390895195,4.00959,1015.9,1015.0,0.26149892]
[1610390895393,5.76239,1015.9,1015.0,1.7467]
[1610390895992,1.7528,1015.9,1015.0,1.7467]
[1610390896394,2.2932,1016.2,1015.0,1.7467]
[1610390896694,2.2932,1016.2,1015.0,2.00815428]
[1610390896894,2.2932,1016.2,1016.1,4.00959]
[1610390897494,1.7792,1016.6,1016.1,4.00959]
[1610390897893,2.0075,1016.9,1016.1,4.00959]
[1610390898095,83.7813,1017.4,1016.1,4.00959]
[1610390898295,60.48025924,1017.8,1016.1,4.00959]
[1610390898496,17.95975242,1017.9,1016.1,4.00959]
[1610390898497,60.47386592,1017.9,1016.3,57.6759]
[1610390898696,66.8825958,1018.2,1016.3,57.6759]
[1610390899097,6.4158,1018.2,1017.8,4.00959]
[1610390899296,60.4566575,1018.3,1017.8,4.00959]
[1610390899499,84.43826654,1018.5,1017.8,4.00959]
[1610390899697,60.45686199,1018.5,1017.8,4.00959]
[1610390899896,60.45686199,1018.5,1017.9,79.7046]
[1610390900098,60.42827768,1019.0,1017.9,79.7046]
[1610390900500,60.40313097,1019.3,1017.9,79.7046]
[1610390901097,60.40313097,1019.3,1019.2,4.00959]
[1610390901297,90.40313097,1019.3,1018.4,1.7358]
[1610390901502,30.0,1019.3,1018.4,1.7358]
[1610390901698,48.4253,1019.3,1018.4,1.7358]
[1610390902103,39.4253,1019.3,1018.4,1.7358]
[1610390902302,99.81935411,1019.3,1018.3,67.5428]
[1610390902501,60.39793254,1019.2,1018.3,67.5428]
[1610390902901,87.75769855,1019.3,1018.3,67.5428]
[1610390903501,69.82239323,1019.3,1018.3,67.5428]
[1610390903712,9.4253,1019.3,1018.3,67.5428]
[1610390904603,39.4253,1019.3,1018.3,67.5428]
[1610390905001,4.00959,1018.4,1018.2,4.00959]
[1610390905201,4.00959,1018.4,1017.8,1.5952]
[1610390905602,4.00959,1018.4,1017.5,75.482]
[1610390905802,1.5819,1018.4,1017.5,75.482]
[1610390907003,1.5819,1018.4,1018.3,4.00959]
[1610390907604,4.00959,1018.6,1018.3,4.00959]
[1610390907804,4.00959,1018.6,1017.5,75.482]
[1610390908604,4.00959,1018.6,1017.5,73.4157]
[1610390909004,4.00959,1018.1,1017.6,4.00959]
[1610390909203,5.83949,1018.1,1017.5,73.4157]
[1610390909405,5.83949,1018.1,1016.4,0.26055804]
[1610390909603,5.83949,1018.1,1016.7,80.8721]
[1610390910005,35.83949,1018.1,1016.7,80.8721]
[1610390910804,44.83949,1018.1,1016.7,80.8721]
[1610390911006,4.00959,1016.8,1016.6,4.00959]
[1610390911406,4.00959,1016.8,1015.8,73.28962204]
[1610390911806,2.169,1017.5,1015.8,73.028]
[1610390912109,2.169,1017.5,1015.8,74.86151856]
[1610390913007,2.169,1017.5,1016.5,4.00959]
[1610390913308,2.169,1017.5,1016.5,6.05289]
[1610390913906,51.1396,1017.5,1016.5,2.0433]
[1610390914508,51.1396,1017.5,1016.1,2.409]
[1610390914710,42.1396,1017.5,1016.1,2.409]
[1610390915109,4.00959,1016.2,1016.1,2.409]
[1610390916512,4.00959,1016.2,1015.8,1.5717]
[1610390917012,4.00959,1016.2,1015.9,4.00959]
[1610390917412,4.00959,1016.2,1015.8,1.5717]
[1610390917613,4.00959,1016.2,1015.6,61.0575]
[1610390917812,2.2152,1016.9,1015.6,61.0575]
[1610390918012,2.2152,1016.9,1015.6,63.0179]
[1610390919011,4.00959,1016.0,1015.7,4.00959]
[1610390919512,32.2152,1016.9,1015.7,4.00959]
[1610390920313,41.7,1016.9,1015.7,4.00959]
[1610390920512,50.7,1016.9,1015.6,63.0179]
[1610390920713,41.2152,1016.9,1015.6,1.9604]
[1610390920915,74.6567,1016.6,1015.0,0.26404998]
[1610390921114,74.6567,1016.6,1014.8,0.79214994]
[1610390921115,4.00959,1015.4,1015.1,4.00959]
[1610390922414,4.00959,1015.4,1014.6,0.2647051]
[1610390922613,6.17529,1015.4,1014.5,0.26497591]
[1610390923014,4.00959,1015.0,1014.9,4.00959]
[1610390923916,4.00959,1015.0,1014.5,0.26497591]
[1610390924318,4.00959,1015.0,1014.4,0.26613153]
[1610390924919,4.00959,1015.0,1014.3,0.53226307]
[1610390924920,4.00959,1015.0,1014.3,0.26675784]
[1610390925117,4.00959,1015.0,1014.5,4.00959]
[1610390925319,2.0912,1015.1,1014.5,4.00959]
[1610390925518,2.0912,1015.1,1014.5,5.86219]
[1610390925721,2.1657,1015.4,1014.5,5.86219]
[1610390925921,2.1657,1015.4,1014.5,6.12886269]
[1610390926320,69.3924,1016.3,1014.7,0.26663319]
[1610390926721,69.3924,1016.3,1014.8,0.26665496]
[1610390927124,4.00959,1016.4,1016.0,4.00959]
[1610390928222,34.00959,1016.4,1015.3,62.0018]
[1610390928425,4.00959,1016.4,1015.1,2.3133]
[1610390928627,4.00959,1016.4,1014.8,1.85240073]
[1610390929129,30.0,1016.4,1014.8,1.5845]
[1610390929328,39.0,1016.4,1014.8,1.5845]
[1610390929529,39.0,1016.4,1014.7,0.26812336]
[1610390929732,39.0,1016.4,1014.6,62.841]
[1610390930731,39.0,1016.4,1014.4,0.26840834]
[1610390930932,70.4988,1015.8,1014.3,0.26850386]
[1610390931132,4.00959,1014.5,1014.4,4.00959]
[1610390932533,1.6268,1014.9,1014.4,4.00959]
[1610390933134,4.00959,1015.3,1014.8,4.00959]
[1610390933534,6.1527,1016.2,1014.8,4.00959]
[1610390933735,71.6422,1016.1,1014.8,4.00959]
[1610390935136,4.00959,1015.2,1014.8,4.00959]
[1610390935536,2.1433,1015.4,1014.8,4.00959]
[1610390936934,2.1433,1015.4,1014.3,0.27190265]
[1610390937134,4.00959,1014.7,1014.3,4.28149265]
[1610390937334,4.00959,1014.7,1014.3,0.27190265]
[1610390937534,4.00959,1014.7,1014.2,2.20728718]
[1610390938137,4.00959,1014.7,1014.2,1.9356]
[1610390938335,4.00959,1014.7,1014.1,0.27205003]
[1610390938535,2.0097,1015.0,1014.1,0.27205003]
[1610390939235,2.0097,1015.0,1014.5,4.00959]
[1610390939536,77.4388,1015.3,1014.5,4.00959]
[1610390939735,2.1433,1015.4,1014.5,4.00959]
[1610390940336,2.2277,1015.8,1014.5,4.00959]
[1610390940536,30.0,1015.8,1014.5,4.00959]
[1610390941134,4.00959,1015.1,1014.7,4.00959]
[1610390942035,4.00959,1015.1,1014.2,73.12192984]
[1610390942435,4.00959,1015.1,1014.2,2.15922984]
[1610390942834,61.0995,1014.9,1014.2,0.27302984]
[1610390943038,63.1567,1014.9,1014.1,0.27416812]
[1610390943239,4.00959,1014.2,1013.8,4.28426262]
[1610390943636,4.00959,1014.2,1013.8,0.27467262]
[1610390944438,2.3908,1014.3,1013.5,0.27566361]
[1610390944637,2.3908,1014.3,1013.6,0.27577742]
[1610390945239,2.3908,1014.3,1014.2,4.00959]
[1610390945639,4.00959,1014.4,1014.2,4.00959]
[1610390947141,4.00959,1014.5,1014.2,4.00959]
[1610390948141,4.00959,1014.5,1013.8,0.2748935]
[1610390948544,4.00959,1014.5,1013.7,85.08277223]
[1610390949143,1.7461,1014.6,1013.9,4.00959]
[1610390951145,1.7461,1014.6,1014.1,4.00959]
[1610390952546,1.7461,1014.6,1013.7,84.80207473]
[1610390952946,1.7461,1014.6,1013.7,84.5275]
[1610390953146,4.00959,1013.8,1013.7,84.5275]
[1610390953346,4.00959,1013.8,1013.7,1.8264]
[1610390953747,4.00959,1013.8,1013.6,4.28348475]
[1610390953946,1.7912,1014.3,1013.6,4.28348475]
[1610390954146,1.7912,1014.3,1013.6,4.00959]
[1610390954548,81.5606,1014.2,1013.6,4.00959]
[1610390954946,81.5606,1014.2,1013.4,0.27363716]
[1610390955148,4.00959,1013.5,1013.3,0.27387383]
[1610390955347,4.00959,1013.5,1013.2,4.00959]
[1610390955547,4.00959,1013.5,1013.1,0.27418293]
[1610390955747,4.00959,1013.5,1012.9,0.27459829]
[1610390956148,4.00959,1013.5,1012.8,0.27475406]
[1610390956549,4.00959,1013.5,1012.9,0.27488402]
[1610390956749,4.00959,1013.5,1012.8,0.27495652]
[1610390957150,71.3509,1013.7,1012.9,4.00959]
[1610390957550,71.3509,1013.7,1012.9,4.28449829]
[1610390957750,71.3509,1013.7,1012.9,4.00959]
[1610390959150,4.00959,1013.0,1012.9,4.00959]
[1610390960051,4.00959,1013.0,1012.6,2.62322892]
[1610390960251,4.00959,1013.0,1012.6,2.3491]
[1610390961151,2.4828,1013.4,1012.8,4.00959]
[1610390961553,68.3782,1013.5,1012.8,4.00959]
[1610390961850,68.3782,1013.5,1012.6,2.3491]
[1610390962254,68.3782,1013.5,1012.5,0.27337112]
[1610390962954,68.3782,1013.5,1012.4,0.2730467]
[1610390963154,68.3782,1013.5,1012.5,4.00959]
[1610390963355,68.3782,1013.5,1012.4,0.2730467]
[1610390963554,68.3782,1013.5,1012.5,2.3691]
[1610390964361,68.3782,1013.5,1012.5,2.64212088]
[1610390964758,68.3782,1013.5,1012.6,0.27280439]
[1610390965158,68.3782,1013.5,1013.1,4.00959]
[1610390965159,4.00959,1013.4,1013.1,4.00959]
[1610390965464,4.00959,1013.4,1012.7,0.27264303]
[1610390965761,4.00959,1013.4,1012.8,0.27259124]
[1610390966061,4.00959,1013.4,1012.7,0.27277301]
[1610390966861,4.00959,1013.4,1012.6,0.27283915]
[1610390967262,4.00959,1012.8,1012.6,0.27283915]
[1610390967462,4.00959,1012.8,1012.5,2.64207445]
[1610390967662,64.115,1013.4,1012.5,2.64207445]
[1610390968062,64.115,1013.4,1012.6,0.27277872]
[1610390968663,64.115,1013.4,1012.7,0.27231374]
[1610390969064,64.115,1013.4,1012.6,0.27236305]
[1610390969264,4.00959,1012.9,1012.7,4.00959]
[1610390969464,4.00959,1012.9,1012.6,0.27236305]
[1610390969662,64.115,1013.4,1012.5,2.64149003]
[1610390969869,2.0043,1013.7,1012.5,2.64149003]
[1610390970063,55.9555,1014.2,1012.6,0.27217841]
[1610390970464,64.9555,1014.2,1012.7,0.27208797]
[1610390970665,55.9555,1014.2,1012.6,0.27209662]
[1610390970966,64.9555,1014.2,1012.6,0.27209662]
[1610390971166,64.9555,1014.2,1012.9,4.00959]
[1610390971366,64.9555,1014.2,1012.6,0.27209662]
[1610390972070,94.9555,1014.2,1012.6,0.27209662]
[1610390972268,39.0,1014.2,1012.5,2.64133342]
[1610390972470,73.922,1013.5,1012.5,2.64133342]
[1610390972669,75.61,1013.5,1012.4,0.27254387]
[1610390972870,84.61,1013.5,1012.4,0.27254387]
[1610390973070,84.61,1013.5,1012.2,0.27308819]